fUSD/lending_fUSD_20250804
["ID","MTS","AMOUNT","RATE_DAILY","PERIOD"]
[377237929,1754305975273,-151.0,0.00040273,14]
[377237930,1754305975283,-151.0,0.00040273,14]
[377237931,1754305975293,-1368.617935,0.00040273,14]
[377237932,1754305975304,-1368.617935,0.00040273,14]
[377237933,1754305975314,-1368.617935,0.00040273,14]
[377237934,1754305975324,-1368.617935,0.00040273,14]
[377237935,1754305975334,-1841.68,0.00040273,2]
[377237936,1754305975345,-1368.617935,0.00040273,14]
[377237937,1754305975355,-151.0,0.00040273,14]
[377237938,1754305975366,-151.0,0.00040273,14]
[377237939,1754305975376,-1091.38,0.00040273,2]
[377237940,1754305975386,-151.0,0.00040273,14]
[377237941,1754305975396,-400.0,0.00040273,2]
[377237942,1754305975406,-292.521967,0.00040273,14]
[377237943,1754305975417,-1368.617935,0.00040273,14]
[377237944,1754305975427,-1368.617935,0.00040273,14]
[377237945,1754305975438,-1368.617935,0.00040273,14]
[377237946,1754305975448,-1368.617935,0.00040273,14]
[377237947,1754305975458,-408.79867755,0.00040273,2]
[377237948,1754305975469,-1368.617944,0.00040273,14]
[377237949,1754305975479,-569.15,0.00040273,2]
[377237950,1754305975489,-400.0,0.00040273,2]
[377237951,1754305975500,-482.87,0.00040273,2]
[377237952,1754305975510,-151.0,0.00040273,14]
[377237953,1754305975522,-151.0,0.00040273,14]
[377237954,1754305975532,-400.0,0.00040273,2]
[377237955,1754305975543,-151.0,0.00040273,14]
[377237956,1754305975553,-151.0,0.00040273,14]
[377237957,1754305975563,-1179.1,0.00040273,2]
[377237958,1754305975574,-400.0,0.00040273,2]
[377237959,1754305975584,-151.0,0.00040273,14]
[377237960,1754305975595,-400.0,0.00040273,2]
[377237961,1754305975606,-400.0,0.00040273,2]
[377237962,1754305975616,-1320.13,0.00040273,2]
[377237963,1754305975626,-1348.28,0.00040273,2]
[377237964,1754305975637,-908.97,0.00040273,2]
[377237965,1754305975647,-1407.62,0.00040273,2]
[377237966,1754305975657,-1144.27,0.00040273,2]
[377237967,1754305975668,-448.56,0.00040273,2]
[377237968,1754305975679,-400.0,0.00040273,2]
[377237969,1754305975690,-853.71,0.00040273,2]
[377237970,1754305975700,-609.84,0.00040273,2]
[377237971,1754305975711,-400.0,0.00040273,2]
[377237972,1754305975721,-1274.99,0.00040273,2]
[377237973,1754305975731,-600.02,0.00040273,2]
[377237974,1754305975742,-800.16,0.00040273,2]
[377237975,1754305975752,-2778.93,0.00040273,2]
[377237976,1754305975762,-787.7,0.00040273,2]
[377237977,1754305975772,-153.689652,0.00040273,14]
[377237978,1754305975783,-500.6,0.00040273,2]
[377237979,1754305975793,-499.94,0.00040273,2]
[377237980,1754305975805,-627.38,0.00040273,2]
[377237981,1754305975815,-151.0,0.00040273,14]
[377237982,1754305975826,-151.0,0.00040273,14]
[377237983,1754305975836,-151.0,0.00040273,14]
[377237984,1754305975847,-290.61025,0.00040273,14]
[377237985,1754305975857,-461.32,0.00040273,2]
[377237986,1754305975868,-400.0,0.00040273,2]
[377237987,1754305975878,-1107.49,0.00040273,2]
[377237988,1754305975889,-400.0,0.00040273,2]
[377237989,1754305975898,-1182.54,0.00040273,2]
[377237990,1754305975909,-2273.69,0.00040273,2]
[377237991,1754305975921,-1007.17980342,0.00040273,2]
[377237992,1754305975932,-790.39,0.00040273,2]
[377237993,1754305975943,-400.0,0.00040273,2]
[377237994,1754305975953,-400.0,0.00040273,2]
[377237995,1754305975963,-400.0,0.00040273,2]
[377237996,1754305975974,-746.2,0.00040273,2]
[377237997,1754305975984,-400.0,0.00040273,2]
[377237998,1754305975995,-2544.09,0.00040273,2]
[377237999,1754305976005,-1066.14,0.00040273,2]
[377238000,1754305976016,-513.6,0.00040273,2]
[377238001,1754305976027,-856.62,0.00040273,2]
[377238002,1754305976037,-445.82,0.00040273,2]
[377238003,1754305976047,-1070.42,0.00040273,2]
[377238004,1754305976058,-548.68,0.00040273,2]
[377238005,1754305976069,-400.0,0.00040273,2]
[377238006,1754305976079,-400.0,0.00040273,2]
[377238007,1754305976089,-413.36,0.00040273,2]
[377238008,1754305976100,-460.79,0.00040273,2]
[377238009,1754305976110,-865.19,0.00040273,2]
[377238010,1754305976120,-1968.28,0.00040273,2]
[377238011,1754305976130,-1119.16,0.00040273,2]
[377238012,1754305976140,-400.0,0.00040273,2]
[377238013,1754305976151,-500.34711618,0.00040273,2]
[377238014,1754305976162,-1422.91,0.00040273,2]
[377238015,1754305976172,-400.0,0.00040273,2]
[377238016,1754305976182,-400.0,0.00040273,2]
[377238017,1754305976192,-1000.0,0.00040273,2]
[377238018,1754305976202,-1354.16,0.00040273,2]
[377238019,1754305976213,-400.0,0.00040273,2]
[377238020,1754305976223,-519.54735102,0.00040273,2]
[377238021,1754305976233,-400.0,0.00040273,2]
[377238022,1754305976243,-625.15,0.00040273,2]
[377238023,1754305976253,-400.0,0.00040273,2]
[377238024,1754305976264,-1598.25,0.00040273,2]
[377238025,1754305976275,-400.0,0.00040273,2]
[377238026,1754305976285,-1192.41,0.00040273,2]
[377238027,1754305976295,-400.0,0.00040273,2]
[377238028,1754305976306,-400.0,0.00040273,2]
[377238029,1754305976317,-668.58,0.00040273,2]
[377238030,1754305976328,-575.89,0.00040273,2]
[377238031,1754305976339,-400.0,0.00040273,2]
[377238032,1754305976349,-1116.34,0.00040273,2]
[377238033,1754305976359,-1214.62,0.00040273,2]
[377238034,1754305976369,-1137.04,0.00040273,2]
[377238035,1754305976380,-400.0,0.00040273,2]
[377238036,1754305976390,-400.0,0.00040273,2]
[377238037,1754305976400,-1590.64,0.00040273,2]
[377238038,1754305976410,-400.0,0.00040273,2]
[377238039,1754305976420,-400.0,0.00040273,2]
[377238040,1754305976431,-400.0,0.00040273,2]
[377238041,1754305976441,-324.30579969,0.00040273,2]
[377238042,1754305976451,-400.0,0.00040273,2]
[377238043,1754305976462,-1138.57,0.00040273,2]
[377238044,1754305976472,-1069.29,0.00040273,2]
[377238045,1754305976483,-400.0,0.00040273,2]
[377238046,1754305976493,-400.0,0.00040273,2]
[377238047,1754305976503,-400.0,0.00040273,2]
[377238048,1754305976514,-400.0,0.00040273,2]
[377238049,1754305976525,-400.0,0.00040273,2]
[377238050,1754305976535,-400.0,0.00040273,2]
[377238051,1754305976546,-1131.33,0.00040273,2]
[377238052,1754305976556,-1171.06,0.00040273,2]
[377238053,1754305976566,-894.77,0.00040273,2]
[377238054,1754305976576,-1384.7,0.00040273,2]
[377238055,1754305976586,-599.89,0.00040273,2]
[377238056,1754305976597,-2355.79,0.00040273,2]
[377238057,1754305976607,-1091.28,0.00040273,2]
[377238058,1754305976617,-400.0,0.00040273,2]
[377238059,1754305976628,-400.0,0.00040273,2]
[377238060,1754305976639,-2327.34,0.00040273,2]
[377238061,1754305976649,-773.66,0.00040273,2]
[377238062,1754305976659,-781.86,0.00040273,2]
[377238063,1754305976669,-501.83,0.00040273,2]
[377238064,1754305976680,-1915.51,0.00040273,2]
[377238065,1754305976690,-400.0,0.00040273,2]
[377238066,1754305976700,-892.62,0.00040273,2]
[377238067,1754305976710,-829.75,0.00040273,2]
[377238068,1754305976720,-538.38,0.00040273,2]
[377238069,1754305976730,-1000.94,0.00040273,2]
[377238070,1754305976740,-1098.02,0.00040273,2]
[377238071,1754305976751,-1453.05,0.00040273,2]
[377238072,1754305977031,-695.84,0.00040273,2]
[377238073,1754305977070,-437.7,0.00040273,2]
[377238074,1754305977080,-1242.82,0.00040273,2]
[377238075,1754305977089,-1119.1,0.00040273,2]
[377238076,1754305977100,-724.66,0.00040273,2]
[377238077,1754305977110,-1165.58,0.00040273,2]
[377238078,1754305977120,-917.85,0.00040273,2]
[377238079,1754305977130,-2290.17,0.00040273,2]
[377238080,1754305977139,-400.0,0.00040273,2]
[377238081,1754305977149,-1308.63,0.00040273,2]
[377238082,1754305977158,-801.64,0.00040273,2]
[377238083,1754305977168,-400.0,0.00040273,2]
[377238084,1754305977177,-906.75,0.00040273,2]
[377238085,1754305977186,-400.0,0.00040273,2]
[377238086,1754305977196,-918.46,0.00040273,2]
[377238087,1754305977206,-1397.01,0.00040273,2]
[377238088,1754305977215,-564.37,0.00040273,2]
[377238089,1754305977225,-190.522726,0.00040273,14]
[377238090,1754305977234,-1040.59,0.00040273,2]
[377238091,1754305977244,-190.522726,0.00040273,14]
[377238092,1754305977254,-190.522726,0.00040273,14]
[377238093,1754305977263,-2104.64,0.00040273,2]
[377238094,1754305977274,-190.522726,0.00040273,14]
[377238095,1754305977283,-400.0,0.00040273,2]
[377238096,1754305977292,-190.522726,0.00040273,14]
[377238097,1754305977302,-1334.51,0.00040273,2]
[377238098,1754305977311,-781.51,0.00040273,2]
[377238099,1754305977321,-1353.35,0.00040273,2]
[377238100,1754305977330,-1874.18,0.00040273,2]
[377238101,1754305977340,-1021.01,0.00040273,2]
[377238102,1754305977349,-190.522726,0.00040273,14]
[377238103,1754305977359,-400.0,0.00040273,2]
[377238104,1754305977368,-190.522726,0.00040273,14]
[377238105,1754305977378,-190.522726,0.00040273,14]
[377238106,1754305977387,-190.522726,0.00040273,14]
[377238107,1754305977396,-400.0,0.00040273,2]
[377238108,1754305977406,-190.522732,0.00040273,14]
[377238109,1754305977415,-1025.08,0.00040273,2]
[377238110,1754305977425,-151.0,0.00040273,14]
[377238111,1754305977434,-151.0,0.00040273,14]
[377238112,1754305977443,-151.0,0.00040273,14]
[377238113,1754305977453,-627.8,0.00040273,2]
[377238114,1754305977462,-400.0,0.00040273,2]
[377238115,1754305977472,-151.0,0.00040273,14]
[377238116,1754305977481,-1868.95,0.00040273,2]
[377238117,1754305977491,-151.0,0.00040273,14]
[377238118,1754305977501,-468.7,0.00040273,2]
[377238119,1754305977511,-1314.14,0.00040273,2]
[377238120,1754305977520,-914.79,0.00040273,2]
[377238121,1754305977530,-400.0,0.00040273,2]
[377238122,1754305977540,-1387.83,0.00040273,2]
[377238123,1754305977550,-1038.98,0.00040273,2]
[377238124,1754305977560,-925.88,0.00040273,2]
[377238125,1754305977570,-1014.44,0.00040273,2]
[377238126,1754305977579,-935.88,0.00040273,2]
[377238127,1754305977589,-400.0,0.00040273,2]
[377238128,1754305977598,-590.39,0.00040273,2]
[377238129,1754305977607,-1614.1,0.00040273,2]
[377238130,1754305977619,-710.0,0.00040273,2]
[377238131,1754305977628,-1412.5,0.00040273,2]
[377238132,1754305977638,-608.78,0.00040273,2]
[377238133,1754305977648,-400.0,0.00040273,2]
[377238134,1754305977657,-400.0,0.00040273,2]
[377238135,1754305977667,-1252.59,0.00040273,2]
[377238136,1754305977677,-695.98,0.00040273,2]
[377238137,1754305977687,-856.19,0.00040273,2]
[377238138,1754305977697,-1142.6,0.00040273,2]
[377238139,1754305977706,-397.18077568,0.00040273,2]
[377238140,1754305977716,-400.0,0.00040273,2]
[377238141,1754305977726,-810.9,0.00040273,2]
[377238142,1754305977735,-400.0,0.00040273,2]
[377238143,1754305977745,-793.48,0.00040273,2]
[377238144,1754305977754,-1752.3,0.00040273,2]
[377238145,1754305977764,-400.0,0.00040273,2]
[377238146,1754305977773,-1639.2,0.00040273,2]
[377238147,1754305977782,-1057.57,0.00040273,2]
[377238148,1754305977792,-1899.23,0.00040273,2]
[377238149,1754305977802,-400.0,0.00040273,2]
[377238150,1754305977812,-1894.1,0.00040273,2]
[377238151,1754305977822,-400.0,0.00040273,2]
[377238152,1754305977832,-400.0,0.00040273,2]
[377238153,1754305977841,-400.0,0.00040273,2]
[377238154,1754305977851,-1066.82,0.00040273,2]
[377238155,1754305977862,-260.38022035,0.00040273,2]
[377238156,1754305977872,-1326.33,0.00040273,2]
[377238157,1754305977882,-405.69,0.00040273,2]
[377238158,1754305977891,-1189.48,0.00040273,2]
[377238159,1754305977901,-1704.15,0.00040273,2]
[377238160,1754305977911,-1046.61,0.00040273,2]
[377238161,1754305977923,-400.0,0.00040273,2]
[377238162,1754305977934,-833.04,0.00040273,2]
[377238163,1754305977944,-400.0,0.00040273,2]
[377238164,1754305977954,-684.99,0.00040273,2]
[377238165,1754305977965,-400.0,0.00040273,2]
[377238166,1754305977975,-925.69,0.00040273,2]
[377238167,1754305977985,-1612.63,0.00040273,2]
[377238168,1754305977994,-482.48,0.00040273,2]
[377238169,1754305978005,-596.8,0.00040273,2]
[377238170,1754305978016,-1463.3,0.00040273,2]
[377238171,1754305978026,-1295.25,0.00040273,2]
[377238172,1754305978035,-2145.64,0.00040273,2]
[377238173,1754305978045,-1283.66,0.00040273,2]
[377238174,1754305978054,-400.0,0.00040273,2]
[377238175,1754305978064,-758.52,0.00040273,2]
[377238176,1754305978074,-400.0,0.00040273,2]
[377238177,1754305978083,-400.0,0.00040273,2]
[377238178,1754305978093,-721.69,0.00040273,2]
[377238179,1754305978103,-7192.74,0.00040273,2]
[377238180,1754305978112,-988.46,0.00040273,2]
[377238181,1754305978121,-896.0,0.00040273,2]
[377238182,1754305978131,-453.42,0.00040273,2]
[377238183,1754305978143,-400.0,0.00040273,2]
[377238184,1754305978153,-766.66,0.00040273,2]
[377238185,1754305978162,-627.97,0.00040273,2]
[377238186,1754305978172,-400.0,0.00040273,2]
[377238187,1754305978183,-400.0,0.00040273,2]
[377238188,1754305978192,-1762.88,0.00040273,2]
[377238189,1754305978202,-1472.33,0.00040273,2]
[377238190,1754305978212,-400.0,0.00040273,2]
[377238191,1754305978221,-400.0,0.00040273,2]
[377238192,1754305978231,-400.0,0.00040273,2]
[377238193,1754305978240,-1303.02,0.00040273,2]
[377238194,1754305978249,-796.7,0.00040273,2]
[377238195,1754305978259,-1414.12,0.00040273,2]
[377238196,1754305978268,-400.0,0.00040273,2]
[377238197,1754305978279,-700.57,0.00040273,2]
[377238198,1754305978290,-986.33,0.00040273,2]
[377238199,1754305978299,-553.07,0.00040273,2]
[377238200,1754305978309,-658.58,0.00040273,2]
[377238201,1754305978319,-1321.92,0.00040273,2]
[377238202,1754305978329,-151.0,0.00040273,14]
[377238203,1754305978339,-400.0,0.00040273,2]
[377238204,1754305978349,-400.0,0.00040273,2]
[377238205,1754305978359,-151.0,0.00040273,14]
[377238206,1754305978368,-151.0,0.00040273,14]
[377238207,1754305978379,-151.0,0.00040273,14]
[377238208,1754305978390,-151.0,0.00040273,14]
[377238209,1754305978400,-499.21,0.00040273,2]
[377238210,1754305978410,-1836.51,0.00040273,2]
[377238211,1754305978419,-1050.51,0.00040273,2]
[377238212,1754305978429,-151.0,0.00040273,14]
[377238213,1754305978439,-682.1,0.00040273,2]
[377238214,1754305978448,-151.0,0.00040273,14]
[377238215,1754305978458,-739.68,0.00040273,2]
[377238216,1754305978468,-1274.01,0.00040273,2]
[377238217,1754305978478,-400.0,0.00040273,2]
[377238218,1754305978487,-651.05,0.00040273,2]
[377238219,1754305978497,-1303.02,0.00040273,2]
[377238220,1754305978507,-400.0,0.00040273,2]
[377238221,1754305978517,-822.07,0.00040273,2]
[377238222,1754305978529,-999.83,0.00040273,2]
[377238223,1754305978540,-400.0,0.00040273,2]
[377238224,1754305978550,-1091.32,0.00040273,2]
[377238225,1754305978559,-596.36,0.00040273,2]
[377238226,1754305978569,-562.8,0.00040273,2]
[377238227,1754305978579,-1242.64,0.00040273,2]
[377238228,1754305978590,-558.09,0.00040273,2]
[377238229,1754305978599,-793.84,0.00040273,2]
[377238230,1754305978609,-1330.82,0.00040273,2]
[377238231,1754305978618,-286.183478,0.00040273,14]
[377238232,1754305978627,-286.183478,0.00040273,14]
[377238233,1754305978636,-286.183478,0.00040273,14]
[377238234,1754305978646,-286.183478,0.00040273,14]
[377238235,1754305978656,-286.183478,0.00040273,14]
[377238236,1754305978666,-1446.54,0.00040273,2]
[377238237,1754305978676,-2488.352271,0.00040273,14]
[377238238,1754305978685,-2488.352271,0.00040273,14]
[377238239,1754305978694,-2488.352271,0.00040273,14]
[377238240,1754305978704,-1346.03,0.00040273,2]
[377238241,1754305978713,-2488.352271,0.00040273,14]
[377238242,1754305978722,-2488.352271,0.00040273,14]
[377238243,1754305978731,-879.7,0.00040273,2]
[377238244,1754305978741,-1481.75,0.00040273,2]
[377238245,1754305978750,-400.0,0.00040273,2]
[377238246,1754305978759,-400.0,0.00040273,2]
[377238247,1754305978768,-1081.44,0.00040273,2]
[377238248,1754305978780,-2294.74,0.00040273,2]
[377238249,1754305978790,-2488.352271,0.00040273,14]
[377238250,1754305978799,-528.1,0.00040273,2]
[377238251,1754305978809,-2488.352271,0.00040273,14]
[377238252,1754305978819,-2488.352271,0.00040273,14]
[377238253,1754305978828,-160.98925385,0.00040273,2]
[377238254,1754305978838,-2488.352271,0.00040273,14]
[377238255,1754305978848,-768.31,0.00040273,2]
[377238256,1754305978858,-2488.352268,0.00040273,14]
[377238257,1754305978867,-2185.11,0.00040273,2]
[377238258,1754305978876,-764.62,0.00040273,2]
[377238259,1754305978885,-484.61174673,0.00040273,2]
[377238260,1754305978895,-400.0,0.00040273,2]
[377238261,1754305978904,-2154.11,0.00040273,2]
[377238262,1754305978913,-286.183478,0.00040273,14]
[377238263,1754305978926,-400.0,0.00040273,2]
[377238264,1754305978935,-235.10805225,0.00040273,2]
[377238265,1754305978945,-286.183478,0.00040273,14]
[377238266,1754305978954,-286.183478,0.00040273,14]
[377238267,1754305978963,-286.183478,0.00040273,14]
[377238268,1754305978972,-670.62,0.00040273,2]
[377238269,1754305978982,-286.183471,0.00040273,14]
[377238270,1754305978991,-1687.51,0.00040273,2]
[377238271,1754305979000,-400.0,0.00040273,2]
[377238272,1754305979010,-1797.87,0.00040273,2]
[377238273,1754305979020,-884.68,0.00040273,2]
[377238274,1754305979031,-466.07,0.00040273,2]
[377238275,1754305979041,-659.47,0.00040273,2]
[377238276,1754305979050,-1427.05,0.00040273,2]
[377238277,1754305979059,-1547.49,0.00040273,2]
[377238278,1754305979067,-650.0,0.00040273,120]
[377238279,1754305979077,-430.38,0.00040273,2]
[377238280,1754305979086,-400.0,0.00040273,2]
[377238281,1754305979095,-948.07,0.00040273,2]
[377238282,1754305979105,-400.0,0.00040273,2]
[377238283,1754305979114,-1424.69,0.00040273,2]
[377238284,1754305979123,-1692.45,0.00040273,2]
[377238285,1754305979133,-1068.48,0.00040273,2]
[377238286,1754305979142,-870.74,0.00040273,2]
[377238287,1754305979151,-1630.8,0.00040273,2]
[377238288,1754305979162,-400.0,0.00040273,2]
[377238289,1754305979172,-840.48,0.00040273,2]
[377238290,1754305979182,-415.16423863,0.00040273,2]
[377238291,1754305979191,-665.52,0.00040273,2]
[377238292,1754305979201,-469.7,0.00040273,2]
[377238293,1754305979210,-1702.7,0.00040273,2]
[377238294,1754305979219,-727.65,0.00040273,2]
[377238295,1754305979229,-1107.78,0.00040273,2]
[377238296,1754305979238,-1880.84,0.00040273,2]
[377238297,1754305979248,-154.24799202,0.00040273,2]
[377238298,1754305979257,-400.0,0.00040273,2]
[377238299,1754305979267,-400.0,0.00040273,2]
[377238300,1754305979277,-813.9,0.00040273,2]
[377238301,1754305979287,-874.7,0.00040273,2]
[377238302,1754305979296,-400.0,0.00040273,2]
[377238303,1754305979306,-426.16,0.00040273,2]
[377238304,1754305979315,-665.68,0.00040273,2]
[377238305,1754305979325,-1110.47,0.00040273,2]
[377238306,1754305979334,-400.0,0.00040273,2]
[377238307,1754305979344,-903.87,0.00040273,2]
[377238308,1754305979353,-1358.5,0.00040273,2]
[377238309,1754305979362,-470.81,0.00040273,2]
[377238310,1754305979372,-440.85,0.00040273,2]
[377238311,1754305979499,-1647.73,0.00040273,2]
[377238312,1754305979510,-1246.04,0.00040273,2]
[377238313,1754305979519,-924.22,0.00040273,2]
[377238314,1754305979530,-472.86,0.00040273,2]
[377238315,1754305979540,-994.67,0.00040273,2]
[377238316,1754305979549,-1443.42,0.00040273,2]
[377238317,1754305979558,-770.36,0.00040273,2]
[377238318,1754305979568,-1946.52,0.00040273,2]
[377238319,1754305979577,-979.61,0.00040273,2]
[377238320,1754305979586,-400.0,0.00040273,2]
[377238321,1754305979596,-482.35,0.00040273,2]
[377238322,1754305979606,-400.0,0.00040273,2]
[377238323,1754305979615,-400.0,0.00040273,2]
[377238324,1754305979625,-2101.73,0.00040273,2]
[377238325,1754305979634,-860.7,0.00040273,2]
[377238326,1754305979644,-645.5,0.00040273,2]
[377238327,1754305979659,-537.4,0.00040273,2]
[377238328,1754305979668,-537.04,0.00040273,2]
[377238329,1754305979677,-450.14,0.00040273,2]
[377238330,1754305979686,-456.48,0.00040273,2]
[377238331,1754305979695,-798.27,0.00040273,2]
[377238332,1754305979704,-1154.12,0.00040273,2]
[377238333,1754305979713,-1175.36,0.00040273,2]
[377238334,1754305979723,-1226.27,0.00040273,2]
[377238335,1754305979732,-939.52,0.00040273,2]
[377238336,1754305979741,-400.0,0.00040273,2]
[377238337,1754305979751,-786.99,0.00040273,2]
[377238338,1754305979761,-842.4,0.00040273,2]
[377238339,1754305979770,-869.19,0.00040273,2]
[377238340,1754305979780,-400.0,0.00040273,2]
[377238341,1754305979789,-700.37,0.00040273,2]
[377238342,1754305979799,-400.0,0.00040273,2]
[377238343,1754305979808,-1791.49,0.00040273,2]
[377238344,1754305979817,-1221.49,0.00040273,2]
[377238345,1754305979826,-1000.94,0.00040273,2]
[377238346,1754305979836,-400.0,0.00040273,2]
[377238347,1754305979845,-1747.77,0.00040273,2]
[377238348,1754305979854,-991.24,0.00040273,2]
[377238349,1754305979864,-400.0,0.00040273,2]
[377238350,1754305979873,-1316.83,0.00040273,2]
[377238351,1754305979882,-755.49,0.00040273,2]
[377238352,1754305979891,-1344.32,0.00040273,2]
[377238353,1754305979901,-778.88,0.00040273,2]
[377238354,1754305979910,-420.310705,0.00040273,2]
[377238355,1754305979922,-1539.3,0.00040273,2]
[377238356,1754305979932,-444.22,0.00040273,2]
[377238357,1754305979941,-1258.35,0.00040273,2]
[377238358,1754305979951,-400.0,0.00040273,2]
[377238359,1754305979960,-400.0,0.00040273,2]
[377238360,1754305979971,-400.0,0.00040273,2]
[377238361,1754305979980,-1113.84,0.00040273,2]
[377238362,1754305979990,-1182.86,0.00040273,2]
[377238363,1754305980000,-4729.89,0.00040273,2]
[377238364,1754305980010,-1278.85,0.00040273,2]
[377238365,1754305980019,-454.82,0.00040273,2]
[377238366,1754305980029,-492.55,0.00040273,2]
[377238367,1754305980039,-1031.98,0.00040273,2]
[377238368,1754305980048,-775.41,0.00040273,2]
[377238369,1754305980058,-400.0,0.00040273,2]
[377238370,1754305980067,-400.0,0.00040273,2]
[377238371,1754305980076,-1202.77,0.00040273,2]
[377238372,1754305980086,-400.0,0.00040273,2]
[377238373,1754305980095,-400.0,0.00040273,2]
[377238374,1754305980104,-1481.93,0.00040273,2]
[377238375,1754305980114,-1675.62,0.00040273,2]
[377238376,1754305980123,-584.39,0.00040273,2]
[377238377,1754305980132,-679.61,0.00040273,2]
[377238378,1754305980141,-744.37,0.00040273,2]
[377238379,1754305980150,-400.0,0.00040273,2]
[377238380,1754305980164,-2502.12,0.00040273,2]
[377238381,1754305980173,-815.04,0.00040273,2]
[377238382,1754305980182,-1340.53,0.00040273,2]
[377238383,1754305980193,-1484.28,0.00040273,2]
[377238384,1754305980203,-1012.72,0.00040273,2]
[377238385,1754305980212,-2328.28,0.00040273,2]
[377238386,1754305980221,-1969.15,0.00040273,2]
[377238387,1754305980232,-1435.3,0.00040273,2]
[377238388,1754305980242,-400.0,0.00040273,2]
[377238389,1754305980251,-400.0,0.00040273,2]
[377238390,1754305980260,-400.0,0.00040273,2]
[377238391,1754305980268,-913.42,0.00040273,2]
[377238392,1754305980276,-400.0,0.00040273,2]
[377238393,1754305980285,-1703.95,0.00040273,2]
[377238394,1754305980293,-2504.25,0.00040273,2]
[377238395,1754305980302,-400.0,0.00040273,2]
[377238396,1754305980311,-741.38,0.00040273,2]
[377238397,1754305980320,-1030.22,0.00040273,2]
[377238398,1754305980330,-400.0,0.00040273,2]
[377238399,1754305980339,-400.0,0.00040273,2]
[377238400,1754305980348,-400.0,0.00040273,2]
[377238401,1754305980357,-400.0,0.00040273,2]
[377238402,1754305980367,-1237.75,0.00040273,2]
[377238403,1754305980376,-400.0,0.00040273,2]
[377238404,1754305980386,-623.67,0.00040273,2]
[377238405,1754305980396,-400.0,0.00040273,2]
[377238406,1754305980405,-992.32,0.00040273,2]
[377238407,1754305980414,-602.81,0.00040273,2]
[377238408,1754305980422,-400.0,0.00040273,2]
[377238409,1754305980430,-400.0,0.00040273,2]
[377238410,1754305980440,-400.0,0.00040273,2]
[377238411,1754305980449,-537.5,0.00040273,2]
[377238412,1754305980459,-956.99,0.00040273,2]
[377238413,1754305980469,-630.59,0.00040273,2]
[377238414,1754305980478,-1585.73,0.00040273,2]
[377238415,1754305980487,-1301.61,0.00040273,2]
[377238416,1754305980497,-1889.25,0.00040273,2]
[377238417,1754305980506,-924.72,0.00040273,2]
[377238418,1754305980516,-641.71,0.00040273,2]
[377238419,1754305980525,-400.0,0.00040273,2]
[377238420,1754305980534,-400.0,0.00040273,2]
[377238421,1754305980542,-1059.24,0.00040273,2]
[377238422,1754305980551,-2092.15,0.00040273,2]
[377238423,1754305980560,-533.38,0.00040273,2]
[377238424,1754305980569,-890.3,0.00040273,2]
[377238425,1754305980578,-507.24632037,0.00040273,2]
[377238426,1754305980587,-501.38,0.00040273,2]
[377238427,1754305980597,-1366.75,0.00040273,2]
[377238428,1754305980605,-990.2,0.00040273,2]